fUST/lending_fUST_20250303
["ID","MTS","AMOUNT","RATE_DAILY","PERIOD"]
[355182710,1740959446966,-250.0,0.00023013,2]
[355182712,1740959446976,-500.0,0.00023013,2]
[355182714,1740959446987,-500.0,0.00023013,2]
[355182716,1740959446996,-191.06,0.00023013,2]
[355182718,1740959447006,-500.0,0.00023013,2]
[355182720,1740959447016,-500.0,0.00023013,2]
[355182722,1740959447026,-500.0,0.00023013,2]
[355182723,1740959447036,-500.0,0.00023013,2]
[355182724,1740959447045,-500.0,0.00023013,2]
[355182725,1740959447055,-264.81,0.00023013,2]
[355182726,1740959447064,-500.0,0.00023013,2]
[355182728,1740959447074,-189.6,0.00023013,2]
[355182730,1740959447083,-500.0,0.00023013,2]
[355182732,1740959447093,-500.0,0.00023013,2]
[355182734,1740959447103,-500.0,0.00023013,2]
[355182736,1740959447112,-554.96,0.00023013,2]
[355182738,1740959447124,-500.0,0.00023013,2]
[355182740,1740959447135,-312.9,0.00023013,2]
[355182742,1740959447145,-500.0,0.00023013,2]
[355182744,1740959447155,-593.91368313,0.00023013,2]
[355182746,1740959447165,-500.0,0.00023013,2]
[355182748,1740959447175,-500.0,0.00023013,2]
[355182750,1740959447186,-500.0,0.00023013,2]
[355182752,1740959447196,-500.0,0.00023013,2]
[355182754,1740959447209,-500.0,0.00023013,2]
[355182756,1740959447219,-331.29,0.00023013,2]
[355182758,1740959447228,-167.42752899,0.00023013,2]
[355182760,1740959447238,-500.0,0.00023013,2]
[355182763,1740959447248,-500.0,0.00023013,2]
[355182765,1740959447258,-500.0,0.00023013,2]
[355182767,1740959447267,-220.84,0.00023013,2]
[355182768,1740959447276,-235.61,0.00023013,2]
[355182771,1740959447287,-500.0,0.00023013,2]
[355182773,1740959447297,-500.0,0.00023013,2]
[355182775,1740959447306,-500.0,0.00023013,2]
[355182777,1740959447316,-500.0,0.00023013,2]
[355182779,1740959447326,-500.0,0.00023013,2]
[355182781,1740959447335,-500.0,0.00023013,2]
[355182783,1740959447345,-500.0,0.00023013,2]
[355182785,1740959447354,-519.61,0.00023013,2]
[355182787,1740959447364,-445.59,0.00023013,2]
[355182788,1740959447375,-199.09,0.00023013,2]
[355182790,1740959447384,-500.0,0.00023013,2]
[355182792,1740959447394,-500.0,0.00023013,2]
[355182795,1740959447404,-500.0,0.00023013,2]
[355182797,1740959447413,-500.0,0.00023013,2]
[355182799,1740959447423,-500.0,0.00023013,2]
[355182801,1740959447433,-500.0,0.00023013,2]
[355182803,1740959447442,-500.0,0.00023013,2]
[355182805,1740959447452,-500.0,0.00023013,2]
[355182807,1740959447461,-500.0,0.00023013,2]
[355182809,1740959447471,-500.0,0.00023013,2]
[355182811,1740959447480,-241.75,0.00023013,2]
[355182813,1740959447490,-500.0,0.00023013,2]
[355182814,1740959447499,-500.0,0.00023013,2]
[355182816,1740959447508,-500.0,0.00023013,2]
[355182817,1740959447518,-500.0,0.00023013,2]
[355182819,1740959447528,-2698.75,0.00023013,2]
[355182821,1740959447537,-606.6,0.00023013,2]
[355182823,1740959447546,-500.0,0.00023013,2]
[355182824,1740959447556,-500.0,0.00023013,2]
[355182826,1740959447565,-500.0,0.00023013,2]
[355182828,1740959447575,-588.21,0.00023013,2]
[355182829,1740959447584,-500.0,0.00023013,2]
[355182831,1740959447595,-500.0,0.00023013,2]
[355182833,1740959447605,-1772.47,0.00023013,2]
[355182834,1740959447614,-500.0,0.00023013,2]
[355182836,1740959447626,-1615.21,0.00023013,2]
[355182838,1740959447636,-1621.36,0.00023013,2]
[355182840,1740959447645,-1939.55,0.00023013,2]
[355182841,1740959447655,-554.84,0.00023013,2]
[355182843,1740959447664,-1505.15,0.00023013,2]
[355182845,1740959447674,-1097.34,0.00023013,2]
[355182847,1740959447684,-500.0,0.00023013,2]
[355182848,1740959447694,-500.0,0.00023013,2]
[355182850,1740959447704,-1049.32,0.00023013,2]
[355182852,1740959447714,-500.0,0.00023013,2]
[355182861,1740959447724,-500.0,0.00023013,2]
[355182863,1740959447828,-770.86,0.00023013,2]
[355182865,1740959447838,-500.0,0.00023013,2]
[355182867,1740959447848,-500.0,0.00023013,2]
[355182869,1740959447858,-575.65,0.00023013,2]
[355182870,1740959447868,-500.0,0.00023013,2]
[355182872,1740959447877,-500.0,0.00023013,2]
[355182874,1740959447887,-1000.0,0.00023013,5]
[355182876,1740959447897,-1461.03,0.00023013,2]
[355182878,1740959447907,-500.0,0.00023013,2]
[355182879,1740959447917,-500.0,0.00023013,2]
[355182881,1740959447927,-500.0,0.00023013,2]
[355182883,1740959447937,-2583.24,0.00023013,2]
[355182885,1740959447947,-25903.58,0.00023013,2]
[355182887,1740959447957,-214.499504,0.00023013,7]
[355182889,1740959447967,-500.0,0.00023013,2]
[355182890,1740959447978,-214.499504,0.00023013,7]
[355182892,1740959447987,-500.0,0.00023013,2]
[355182894,1740959447997,-500.0,0.00023013,2]
[355182896,1740959448007,-500.0,0.00023013,2]
[355182898,1740959448017,-500.0,0.00023013,2]
[355182900,1740959448028,-500.0,0.00023013,2]
[355182901,1740959448039,-500.0,0.00023013,2]
[355182903,1740959448049,-500.0,0.00023013,2]
[355182904,1740959448061,-500.0,0.00023013,2]
[355182905,1740959448072,-223.73,0.00023013,2]
[355182906,1740959448083,-500.0,0.00023013,2]
[355182907,1740959448094,-500.0,0.00023013,2]
[355182908,1740959448104,-500.0,0.00023013,2]
[355182910,1740959448116,-500.0,0.00023013,2]
[355182912,1740959448127,-5824.26,0.00023013,2]
[355182914,1740959448137,-500.0,0.00023013,2]
[355182917,1740959448148,-151.0,0.00023013,7]
[355182919,1740959448158,-500.0,0.00023013,2]
[355182921,1740959448169,-151.0,0.00023013,7]
[355182923,1740959448179,-640.35,0.00023013,2]
[355182925,1740959448190,-500.0,0.00023013,2]
[355182927,1740959448204,-500.0,0.00023013,2]
[355182929,1740959448214,-500.0,0.00023013,2]
[355182931,1740959448224,-500.0,0.00023013,2]
[355182933,1740959448235,-608.14,0.00023013,2]
[355182935,1740959448245,-252.246326,0.00023013,7]
[355182937,1740959448254,-506.48,0.00023013,2]
[355182939,1740959448264,-252.246326,0.00023013,7]
[355182941,1740959448275,-500.0,0.00023013,2]
[355182943,1740959448285,-500.0,0.00023013,2]
[355182945,1740959448295,-151.0,0.00023013,7]
[355182947,1740959448306,-522.14,0.00023013,2]
[355182949,1740959448315,-1235.64,0.00023013,2]
[355182951,1740959448324,-500.0,0.00023013,2]
[355182953,1740959448335,-500.0,0.00023013,2]
[355182955,1740959448345,-500.0,0.00023013,2]
[355182957,1740959448355,-655.86418647,0.0002305,2]
[355182959,1740959448367,-400.624029,0.00023094,7]
[355182961,1740959448377,-400.624029,0.00023094,7]
[355182963,1740959448387,-151.0,0.00023094,7]
[355182965,1740959448397,-151.0,0.00023094,7]
[355182967,1740959448408,-301.688254,0.00023094,7]
[355182969,1740959448418,-151.0,0.00023094,7]
[355182971,1740959448429,-444.985376,0.00023094,7]
[355182973,1740959448439,-444.985376,0.00023094,7]
[355182975,1740959448449,-151.0,0.00023094,7]
[355182977,1740959448458,-160.0,0.00023094,2]
[355182979,1740959448468,-160.0,0.00023094,2]
[355182981,1740959448478,-19629.85965445,0.00023094,2]
[355182984,1740959448488,-768.16,0.00023177,3]
[355182986,1740959448498,-384.08,0.00023177,3]
[355182988,1740959448509,-160.0,0.00023241,2]
[355182990,1740959448518,-500.0,0.00023263,2]
[355182992,1740959448528,-500.0,0.00023273,2]
[355182994,1740959448537,-151.0,0.00023273,7]
[355182996,1740959448547,-19629.85965445,0.00023286,7]
[355182998,1740959448556,-250.0,0.00023287,2]
[355183000,1740959448566,-2000.0,0.00023287,30]
[355183002,1740959448576,-200.60117671,0.00023287,30]
[355183004,1740959448586,-500.0,0.00023287,2]
[355183006,1740959448595,-500.0,0.00023287,2]
[355183008,1740959448605,-500.0,0.00023287,2]
[355183011,1740959448625,-500.0,0.00023287,2]
[355183014,1740959448647,-500.0,0.00023287,2]
[355183016,1740959448662,-500.0,0.00023287,2]
[355183019,1740959448681,-500.0,0.00023287,2]
[355183022,1740959448700,-500.0,0.00023287,2]
[355183025,1740959448720,-500.0,0.00023287,2]
[355183028,1740959448740,-587.5,0.00023287,2]
[355183031,1740959448758,-500.0,0.00023287,2]
[355183033,1740959448774,-500.0,0.00023287,2]
[355183036,1740959448793,-500.0,0.00023287,2]
[355183039,1740959448810,-500.0,0.00023287,2]
[355183041,1740959448823,-500.0,0.00023287,2]
[355183044,1740959448840,-520.4,0.00023287,2]
[355183046,1740959448857,-500.0,0.00023287,2]
[355183049,1740959448876,-500.0,0.00023287,2]
[355183052,1740959448894,-151.0,0.00023287,7]
[355183055,1740959448915,-500.0,0.00023287,2]
[355183058,1740959448928,-304.13,0.00023287,2]
[355183060,1740959448942,-170.92,0.00023287,2]
[355183063,1740959448961,-500.0,0.00023287,2]
[355183066,1740959448978,-500.0,0.00023287,2]
[355183068,1740959448993,-500.0,0.00023287,2]
[355183071,1740959449012,-151.0,0.00023287,7]
[355183074,1740959449025,-500.0,0.00023287,2]
[355183076,1740959449039,-500.0,0.00023287,2]
[355183078,1740959449054,-174.933676,0.00023287,7]
[355183081,1740959449069,-500.0,0.00023287,2]
[355183084,1740959449084,-500.0,0.00023287,2]
[355183086,1740959449100,-500.0,0.00023287,2]
[355183088,1740959449114,-500.0,0.00023287,2]
[355183089,1740959449129,-500.0,0.00023287,2]
[355183090,1740959449145,-500.0,0.00023287,2]
[355183093,1740959449160,-500.0,0.00023287,2]
[355183095,1740959449175,-500.0,0.00023287,2]
[355183098,1740959449189,-500.0,0.00023287,2]
[355183100,1740959449206,-500.0,0.00023287,2]
[355183102,1740959449222,-312.01095324,0.00023287,2]
[355183105,1740959449238,-418.32,0.00023287,2]
[355183107,1740959449254,-2698.75,0.00023287,2]
[355183110,1740959449270,-500.0,0.00023287,2]
[355183113,1740959449287,-500.0,0.00023287,2]
[355183115,1740959449302,-500.0,0.00023287,2]
[355183118,1740959449317,-588.21,0.00023287,2]
[355183120,1740959449332,-585.93,0.00023287,2]
[355183123,1740959449346,-500.0,0.00023287,2]
[355183125,1740959449361,-1772.47,0.00023287,2]
[355183128,1740959449377,-500.0,0.00023287,2]
[355183130,1740959449391,-1615.21,0.00023287,2]
[355183133,1740959449406,-1621.36,0.00023287,2]
[355183135,1740959449421,-1939.55,0.00023287,2]
[355183138,1740959449436,-554.84,0.00023287,2]
[355183140,1740959449450,-1505.15,0.00023287,2]
[355183143,1740959449466,-1097.34,0.00023287,2]
[355183146,1740959449482,-500.0,0.00023287,2]
[355183148,1740959449496,-500.0,0.00023287,2]
[355183151,1740959449511,-1049.32,0.00023287,2]
[355183153,1740959449526,-500.0,0.00023287,2]
[355183156,1740959449540,-500.0,0.00023287,2]
[355183158,1740959449556,-770.86,0.00023287,2]
[355183161,1740959449570,-500.0,0.00023287,2]
[355183164,1740959449584,-500.0,0.00023287,2]
[355183166,1740959449599,-575.65,0.00023287,2]
[355183169,1740959449614,-500.0,0.00023287,2]
[355183171,1740959449628,-500.0,0.00023287,2]
[355183173,1740959449643,-1000.0,0.00023287,5]
[355183174,1740959449657,-1461.03,0.00023287,2]
[355183175,1740959449671,-500.0,0.00023287,2]
[355183176,1740959449686,-500.0,0.00023287,2]
[355183177,1740959449700,-210.97818841,0.00023287,2]
[355183178,1740959449714,-2583.24,0.00023287,2]
[355183179,1740959449729,-25903.58,0.00023287,2]
[355183180,1740959449744,-214.499504,0.00023287,7]
[355183181,1740959449760,-500.0,0.00023287,2]
[355183182,1740959449775,-214.499504,0.00023287,7]
[355183183,1740959449786,-500.0,0.00023287,2]
[355183184,1740959449956,-500.0,0.00023287,2]
[355183185,1740959449981,-500.0,0.00023287,2]
[355183186,1740959449992,-500.0,0.00023287,2]
[355183187,1740959450002,-500.0,0.00023287,2]
[355183188,1740959450012,-500.0,0.00023287,2]
[355183189,1740959450022,-500.0,0.00023287,2]
[355183190,1740959450032,-500.0,0.00023287,2]
[355183191,1740959450042,-500.0,0.00023287,2]
[355183192,1740959450052,-500.0,0.00023287,2]
[355183193,1740959450063,-500.0,0.00023287,2]
[355183194,1740959450072,-5824.26,0.00023287,2]
[355183195,1740959450082,-500.0,0.00023287,2]
[355183196,1740959450091,-151.0,0.00023287,7]
[355183197,1740959450101,-500.0,0.00023287,2]
[355183198,1740959450111,-247.268559,0.00023287,7]
[355183199,1740959450121,-640.35,0.00023287,2]
[355183200,1740959450131,-500.0,0.00023287,2]
[355183201,1740959450140,-500.0,0.00023287,2]
[355183202,1740959450150,-500.0,0.00023287,2]
[355183203,1740959450159,-252.246326,0.00023287,7]
[355183204,1740959450169,-506.48,0.00023287,2]
[355183205,1740959450179,-252.246326,0.00023287,7]
[355183206,1740959450188,-500.0,0.00023287,2]
[355183207,1740959450201,-151.0,0.00023287,7]
[355183208,1740959450211,-522.14,0.00023287,2]
[355183209,1740959450221,-1235.64,0.00023287,2]
[355183210,1740959450230,-500.0,0.00023287,2]
[355183211,1740959450241,-500.0,0.00023287,2]
[355183212,1740959450251,-500.0,0.00023287,2]
[355183213,1740959450260,-250.0,0.00023561,2]
[355183214,1740959450270,-500.0,0.00023561,2]
[355183215,1740959450280,-500.0,0.00023561,2]
[355183216,1740959450290,-500.0,0.00023561,2]
[355183217,1740959450299,-500.0,0.00023561,2]
[355183218,1740959450309,-470.82,0.00023561,2]
[355183219,1740959450318,-379.08,0.00023561,2]
[355183220,1740959450328,-500.0,0.00023561,2]
[355183221,1740959450337,-500.0,0.00023561,2]
[355183222,1740959450346,-500.0,0.00023561,2]
[355183223,1740959450356,-500.0,0.00023561,2]
[355183224,1740959450367,-500.0,0.00023561,2]
[355183225,1740959450377,-500.0,0.00023561,2]
[355183226,1740959450386,-510.35872643,0.00023561,2]
[355183227,1740959450396,-500.0,0.00023561,2]
[355183228,1740959450405,-500.0,0.00023561,2]
[355183229,1740959450415,-500.0,0.00023561,2]
[355183230,1740959450424,-500.0,0.00023561,2]
[355183231,1740959450434,-151.0,0.00023561,7]
[355183232,1740959450443,-500.0,0.00023561,2]
[355183233,1740959450453,-334.39,0.00023561,2]
[355183234,1740959450463,-500.0,0.00023561,2]
[355183235,1740959450472,-400.624029,0.00023561,7]
[355183236,1740959450482,-287.29856417,0.00023561,2]
[355183237,1740959450492,-400.624029,0.00023561,7]
[355183238,1740959450502,-616.7,0.00023561,2]
[355183239,1740959450511,-151.0,0.00023561,7]
[355183240,1740959450520,-500.0,0.00023561,2]
[355183241,1740959450530,-500.0,0.00023561,2]
[355183242,1740959450539,-500.0,0.00023561,2]
[355183243,1740959450548,-2698.75,0.00023561,2]
[355183244,1740959450558,-500.0,0.00023561,2]
[355183245,1740959450568,-500.0,0.00023561,2]
[355183246,1740959450578,-500.0,0.00023561,2]
[355183247,1740959450587,-588.21,0.00023561,2]
[355183248,1740959450597,-151.0,0.00023561,7]
[355183249,1740959450607,-151.0,0.00023561,7]
[355183250,1740959450617,-168.84,0.00023561,2]
[355183251,1740959450627,-1772.47,0.00023561,2]
[355183252,1740959450636,-500.0,0.00023561,2]
[355183253,1740959450646,-1615.21,0.00023561,2]
[355183254,1740959450655,-1621.36,0.00023561,2]
[355183255,1740959450664,-1939.55,0.00023561,2]
[355183256,1740959450674,-554.84,0.00023561,2]
[355183257,1740959450683,-1505.15,0.00023561,2]
[355183258,1740959450692,-1097.34,0.00023561,2]
[355183259,1740959450702,-500.0,0.00023561,2]
[355183260,1740959450711,-500.0,0.00023561,2]
[355183261,1740959450721,-1049.32,0.00023561,2]
[355183262,1740959450731,-444.985376,0.00023561,7]
[355183263,1740959450740,-500.0,0.00023561,2]
[355183264,1740959450750,-500.0,0.00023561,2]
[355183265,1740959450760,-770.86,0.00023561,2]
[355183266,1740959450770,-444.985376,0.00023561,7]
[355183267,1740959450779,-500.0,0.00023561,2]
[355183268,1740959450789,-575.65,0.00023561,2]
[355183269,1740959450799,-500.0,0.00023561,2]
[355183270,1740959450809,-500.0,0.00023561,2]
[355183271,1740959450818,-610.33,0.00023561,5]
[355183272,1740959450827,-1461.03,0.00023561,2]
[355183273,1740959450836,-500.0,0.00023561,2]
[355183274,1740959450846,-500.0,0.00023561,2]
[355183275,1740959450856,-2583.24,0.00023561,2]
[355183276,1740959450865,-25903.58,0.00023561,2]
[355183277,1740959450876,-500.0,0.00023561,2]
[355183278,1740959450886,-500.0,0.00023561,2]
[355183279,1740959450895,-500.0,0.00023561,2]
[355183280,1740959450906,-500.0,0.00023561,2]
[355183281,1740959450916,-500.0,0.00023561,2]
[355183282,1740959450926,-500.0,0.00023561,2]
[355183283,1740959450937,-500.0,0.00023561,2]
[355183284,1740959450947,-500.0,0.00023561,2]
[355183285,1740959450957,-500.0,0.00023561,2]
[355183286,1740959450968,-500.0,0.00023561,2]
[355183287,1740959450978,-500.0,0.00023561,2]
[355183288,1740959450988,-500.0,0.00023561,2]
[355183289,1740959450998,-5824.26,0.00023561,2]
[355183290,1740959451008,-500.0,0.00023561,2]
[355183291,1740959451017,-500.0,0.00023561,2]
[355183292,1740959451026,-640.35,0.00023561,2]
[355183293,1740959451035,-500.0,0.00023561,2]
[355183294,1740959451045,-500.0,0.00023561,2]
[355183295,1740959451054,-500.0,0.00023561,2]
[355183296,1740959451064,-506.48,0.00023561,2]
[355183297,1740959451074,-500.0,0.00023561,2]
[355183298,1740959451084,-224.440416,0.00023561,7]
[355183299,1740959451094,-522.14,0.00023561,2]
[355183300,1740959451104,-1235.64,0.00023561,2]
[355183301,1740959451114,-500.0,0.00023561,2]
[355183302,1740959451125,-500.0,0.00023561,2]
[355183303,1740959451135,-500.0,0.00023561,2]
[355183304,1740959451145,-655.86418647,0.00023667,2]
[355183305,1740959451154,-250.0,0.00023835,2]
[355183306,1740959451164,-500.0,0.00023835,2]
[355183307,1740959451175,-500.0,0.00023835,2]
[355183308,1740959451185,-500.0,0.00023835,2]
[355183309,1740959451195,-351.38,0.00023835,2]
[355183310,1740959451209,-500.0,0.00023835,2]
[355183311,1740959451219,-500.0,0.00023835,2]
[355183312,1740959451229,-500.0,0.00023835,2]
[355183313,1740959451238,-500.0,0.00023835,2]
[355183314,1740959451248,-410.35564966,0.00023835,2]
[355183315,1740959451257,-500.0,0.00023835,2]
[355183316,1740959451266,-500.0,0.00023835,2]
[355183317,1740959451277,-250.732746,0.00023835,7]
[355183318,1740959451286,-500.0,0.00023835,2]
[355183319,1740959451295,-404.21136103,0.00023835,2]
[355183320,1740959451304,-347.08,0.00023835,2]
[355183321,1740959451313,-524.67,0.00023835,2]
[355183322,1740959451322,-500.0,0.00023835,2]
[355183323,1740959451332,-500.0,0.00023835,2]
[355183324,1740959451341,-500.0,0.00023835,2]
[355183325,1740959451350,-2698.75,0.00023835,2]
[355183326,1740959451360,-500.0,0.00023835,2]
[355183327,1740959451370,-305.9,0.00023835,2]
[355183328,1740959451380,-588.21,0.00023835,2]
[355183329,1740959451389,-1772.47,0.00023835,2]
[355183330,1740959451398,-500.0,0.00023835,2]
[355183331,1740959451407,-1615.21,0.00023835,2]
[355183332,1740959451417,-1621.36,0.00023835,2]
[355183333,1740959451426,-1939.55,0.00023835,2]
[355183334,1740959451436,-554.84,0.00023835,2]
[355183335,1740959451445,-1505.15,0.00023835,2]
[355183336,1740959451454,-1097.34,0.00023835,2]
[355183337,1740959451463,-500.0,0.00023835,2]
[355183338,1740959451473,-500.0,0.00023835,2]
[355183339,1740959451482,-1049.32,0.00023835,2]
[355183340,1740959451492,-500.0,0.00023835,2]
[355183341,1740959451501,-500.0,0.00023835,2]
[355183342,1740959451510,-770.86,0.00023835,2]
[355183343,1740959451520,-516.57,0.00023835,2]
[355183344,1740959451529,-575.65,0.00023835,2]
[355183345,1740959451539,-202.04,0.00023835,2]
[355183346,1740959451549,-500.0,0.00023835,2]
[355183347,1740959451558,-1461.03,0.00023835,2]
[355183348,1740959451567,-500.0,0.00023835,2]
[355183349,1740959451576,-500.0,0.00023835,2]
[355183350,1740959451586,-2583.24,0.00023835,2]
[355183351,1740959451596,-25903.58,0.00023835,2]
[355183352,1740959451605,-214.499504,0.00023835,7]
[355183353,1740959451615,-500.0,0.00023835,2]
[355183354,1740959451625,-214.499504,0.00023835,7]
[355183355,1740959451635,-500.0,0.00023835,2]
[355183356,1740959451644,-500.0,0.00023835,2]
[355183357,1740959451654,-500.0,0.00023835,2]
[355183358,1740959451664,-500.0,0.00023835,2]
[355183359,1740959451674,-500.0,0.00023835,2]
[355183360,1740959451683,-500.0,0.00023835,2]
[355183361,1740959451693,-590.82,0.00023835,2]
[355183362,1740959451703,-500.0,0.00023835,2]
[355183363,1740959451713,-500.0,0.00023835,2]
[355183364,1740959451723,-500.0,0.00023835,2]
[355183365,1740959451733,-500.0,0.00023835,2]
[355183366,1740959451742,-5824.26,0.00023835,2]
[355183367,1740959451752,-500.0,0.00023835,2]
[355183368,1740959451762,-151.0,0.00023835,7]
[355183369,1740959451772,-500.0,0.00023835,2]
[355183370,1740959451783,-640.35,0.00023835,2]
[355183371,1740959451793,-500.0,0.00023835,2]
[355183372,1740959451802,-500.0,0.00023835,2]
[355183373,1740959451812,-500.0,0.00023835,2]
[355183374,1740959451822,-252.246326,0.00023835,7]
[355183375,1740959451832,-506.48,0.00023835,2]
[355183376,1740959451842,-252.246326,0.00023835,7]
[355183377,1740959451852,-210.7,0.00023835,2]
[355183378,1740959451861,-151.0,0.00023835,7]
[355183379,1740959451871,-522.14,0.00023835,2]
[355183380,1740959451882,-1235.64,0.00023835,2]
[355183381,1740959451892,-500.0,0.00023835,2]
[355183382,1740959451902,-407.8,0.00023835,2]
[355183383,1740959451912,-500.0,0.00023835,2]
[355183384,1740959451922,-1663.31662493,0.00024,2]
[355183385,1740959451931,-41334.43461128,0.00024,2]
[355183386,1740959451941,-151.0,0.00024,7]
[355183387,1740959451951,-151.0,0.00024,7]
[355183388,1740959451961,-444.985376,0.00024,7]
[355183389,1740959451971,-444.985376,0.00024,7]
[355183390,1740959451982,-160.0,0.00024,7]
[355183391,1740959451991,-6870.05676305,0.00024009,2]
[355183392,1740959452001,-150.0,0.00024024,2]
[355183393,1740959452011,-539.0,0.00024024,2]
[355183394,1740959452021,-1955.0,0.00024024,2]
[355183395,1740959452030,-2279.0,0.00024024,2]
[355183396,1740959452039,-150.0,0.00024024,2]
[355183397,1740959452049,-250.0,0.00024109,2]
[355183398,1740959452059,-500.0,0.00024109,2]
[355183399,1740959452069,-500.0,0.00024109,2]
[355183400,1740959452078,-500.0,0.00024109,2]
[355183401,1740959452088,-500.0,0.00024109,2]
[355183402,1740959452098,-500.0,0.00024109,2]
[355183403,1740959452107,-385.65,0.00024109,2]
[355183404,1740959452245,-204.33,0.00024109,2]
[355183405,1740959452257,-500.0,0.00024109,2]
[355183406,1740959452268,-500.0,0.00024109,2]
[355183407,1740959452278,-500.0,0.00024109,2]
[355183408,1740959452288,-151.0,0.00024109,7]
[355183409,1740959452298,-541.65911184,0.00024109,2]
[355183410,1740959452308,-400.624029,0.00024109,7]
[355183411,1740959452317,-400.624029,0.00024109,7]
[355183412,1740959452327,-151.0,0.00024109,7]
[355183413,1740959452336,-500.0,0.00024109,2]
[355183414,1740959452346,-500.0,0.00024109,2]
[355183415,1740959452355,-2698.75,0.00024109,2]
[355183416,1740959452365,-500.0,0.00024109,2]
[355183417,1740959452375,-500.0,0.00024109,2]
[355183418,1740959452385,-500.0,0.00024109,2]
[355183419,1740959452394,-500.0,0.00024109,2]
[355183420,1740959452404,-500.0,0.00024109,2]
[355183421,1740959452413,-500.0,0.00024109,2]
[355183422,1740959452423,-500.0,0.00024109,2]
[355183423,1740959452433,-500.0,0.00024109,2]
[355183424,1740959452442,-312.76225442,0.00024109,2]
[355183425,1740959452452,-500.0,0.00024109,2]
[355183426,1740959452462,-588.21,0.00024109,2]
[355183427,1740959452472,-1772.47,0.00024109,2]
[355183428,1740959452482,-500.0,0.00024109,2]
[355183429,1740959452492,-1615.21,0.00024109,2]
[355183430,1740959452502,-1621.36,0.00024109,2]
[355183431,1740959452512,-1939.55,0.00024109,2]
[355183432,1740959452522,-554.84,0.00024109,2]
[355183433,1740959452531,-1505.15,0.00024109,2]
[355183434,1740959452541,-1097.34,0.00024109,2]
[355183435,1740959452550,-328.92,0.00024109,2]
[355183436,1740959452560,-500.0,0.00024109,2]
[355183437,1740959452569,-1049.32,0.00024109,2]
[355183438,1740959452579,-500.0,0.00024109,2]
[355183439,1740959452588,-770.86,0.00024109,2]
[355183440,1740959452599,-575.65,0.00024109,2]
[355183441,1740959452609,-500.0,0.00024109,2]
[355183442,1740959452618,-1461.03,0.00024109,2]
[355183443,1740959452628,-500.0,0.00024109,2]
[355183444,1740959452638,-500.0,0.00024109,2]
[355183445,1740959452648,-2583.24,0.00024109,2]
[355183446,1740959452658,-25903.58,0.00024109,2]
[355183447,1740959452667,-214.499504,0.00024109,7]
[355183448,1740959452677,-500.0,0.00024109,2]
[355183449,1740959452687,-214.499504,0.00024109,7]
[355183450,1740959452696,-500.0,0.00024109,2]
[355183451,1740959452706,-376.64879164,0.00024109,2]
[355183452,1740959452716,-154.11,0.00024109,2]
[355183453,1740959452726,-500.0,0.00024109,2]